[Event "GER-ch Youth-U10 2022"]
[Site "Willingen"]
[Date "2022.06.07"]
[Round "5.6"]
[White "Teng, David"]
[Black "Fischermann, Simon"]
[Result "1/2-1/2"]
[ECO "C74"]
[WhiteElo "1423"]
[BlackElo "1344"]
[Annotator "NA RC COMBH"]
[PlyCount "144"]
[EventDate "2022.06.05"]
[EventType "swiss"]
[EventRounds "11"]
[EventCountry "GER"]
[SourceTitle "playchess.com"]
[Source "ChessBase"]
[SourceQuality "1"]
[TimeControl "40/4500+30:900+30"]

1. e4 e5 {[%emt 0:00:12]} 2. Nf3 {[%emt 0:00:08]} Nc6 {[%emt 0:00:05]} 3. Bb5 {[%emt 0:00:11]} a6 {[%emt 0:00:12]} 4. Ba4 {[%emt 0:00:11]} d6 {[%emt 0:00:09]} 5. c3 {[%emt 0:00:39]} f5 {[%emt 0:04:58]} 6. d3 {[%emt 0:06:09]} Nf6 {[%emt 0:00:58]} 7. Nbd2 {[%emt 0:02:11]} Be7 {[%emt 0:01:11]} 8. Bb3 {[%emt 0:01:00]} h6 {[%emt 0:02:21]} 9. Nf1 {[%emt 0:06:50]} g5 {[%emt 0:02:27]} 10. Ne3 {[%emt 0:02:19]} f4 {[%emt 0:00:39]} 11. Nd5 {[%emt 0:03:54]} Na5 {[%emt 0:02:08]} 12. Nxf6+ {[%emt 0:01:21]} Bxf6 {[%emt 0:00:11]} 13. Bc2 {[%emt 0:00:23]} g4 {[%emt 0:04:36]} 14. Nd2 {[%emt 0:00:59]} h5 {[%emt 0:00:39]} 15. b4 {[%emt 0:03:10]} Nc6 {[%emt 0:00:48]} 16. Nb3 {[%emt 0:02:35]} Bh4 {[%emt 0:04:05]} 17. g3 {[%emt 0:03:08]} Bg5 {[%emt 0:02:11]} 18. gxf4 {[%emt 0:02:25]} Bxf4 {[%emt 0:01:39]} 19. Bxf4 {[%emt 0:01:22]} exf4 {[%emt 0:02:02]} 20. Qd2 {[%emt 0:00:00]} Rf8 {[%emt 0:00:40]} 21. O-O-O {[%emt 0:02:32]} Ne5 {[%emt 0:09:38]} 22. Qe2 {[%emt 0:03:22]} Qg5 {[%emt 0:03:02]} 23. Nd4 {[%emt 0:04:57]} h4 {[%emt 0:15:00]} 24. Kb1 {[%emt 0:02:15]} g3 {[%emt 0:01:24]} 25. Rhg1 {[%emt 0:03:37]} f3 {[%emt 0:06:47]} 26. Qe1 {[%emt 0:03:02]} g2 {[%emt 0:00:31]} 27. Bb3 {[%emt 0:00:29]} c5 {[%emt 0:01:33]} 28. bxc5 {[%emt 0:02:43]} dxc5 {[%emt 0:00:08]} 29. Ne6 {[%emt 0:01:50]} Bxe6 {[%emt 0:00:23]} 30. Bxe6 {[%emt 0:00:05]} Ng6 {[%emt 0:03:52]} 31. h3 {[%emt 0:03:17]} Nf4 {[%emt 0:01:05]} 32. Bg4 {[%emt 0:03:08]} Ne2 {[%emt 0:00:29]} 33. Rxg2 {[%emt 0:00:24]} Nxc3+ {[%emt 0:01:06]} 34. Qxc3 {[%emt 0:00:36]} fxg2 {[%emt 0:00:17]} 35. Rg1 {[%emt 0:00:48]} Rxf2 {[%emt 0:00:17]} 36. Qh8+ {[%emt 0:02:28]} Rf8 {[%emt 0:00:19]} 37. Bh5+ {[%emt 0:00:32]} Ke7 {[%emt 0:00:52]} 38. Qh7+ {[%emt 0:00:42]} Kd6 {[%emt 0:00:15]} 39. e5+ {[%emt 0:01:26]} Kc6 {[%emt 0:03:07]} 40. Qe4+ {[%emt 0:01:06]} Kb6 {[%emt 0:00:42]} 41. Bf3 {[%emt 0:16:59]} Rab8 {[%emt 0:16:05]} 42. Rxg2 {[%emt 0:00:30]} Qf4 {[%emt 0:00:19]} 43. Rb2+ {[%emt 0:00:30]} Kc7 {[%emt 0:00:55]} 44. Rxb7+ {[%emt 0:03:31]} Rxb7+ {[%emt 0:00:08]} 45. Qxb7+ {[%emt 0:00:08]} Kd8 {[%emt 0:00:12]} 46. Qb6+ {[%emt 0:01:25]} Ke7 {[%emt 0:00:13]} 47. Qc7+ {[%emt 0:00:34]} Ke6 {[%emt 0:00:14]} 48. Bg4+ {[%emt 0:00:28]} Rf5 {[%emt 0:01:06]} 49. Qd6+ {[%emt 0:01:58]} Kf7 {[%emt 0:00:12]} 50. Qd7+ {[%emt 0:01:39]} Kg6 {[%emt 0:00:19]} 51. Qe6+ {[%emt 0:00:42]} Kg5 {[%emt 0:00:32]} 52. Qg8+ {[%emt 0:02:51]} Kh6 {[%emt 0:00:13]} 53. Qh8+ {[%emt 0:01:29]} Kg6 {[%emt 0:00:11]} 54. Qg8+ {[%emt 0:00:31]} Kh6 {[%emt 0:00:10]} 55. Qe6+ {[%emt 0:00:12]} Kg5 {[%emt 0:00:12]} 56. Qxf5+ {[%emt 0:01:01]} Qxf5 {[%emt 0:00:14]} 57. Bxf5 {[%emt 0:00:05]} Kxf5 {[%emt 0:00:05]} 58. Kc2 {[%emt 0:00:14]} Kxe5 {[%emt 0:00:18]} 59. Kc3 {[%emt 0:00:17]} Kd5 {[%emt 0:00:15]} 60. a3 {[%emt 0:00:17]} Kc6 {[%emt 0:05:38]} 61. Kc4 {[%emt 0:01:27]} Kd6 {[%emt 0:00:29]} 62. a4 {[%emt 0:00:14]} Kc6 {[%emt 0:00:14]} 63. a5 {[%emt 0:00:16]} Kd6 {[%emt 0:00:13]} 64. d4 {[%emt 0:00:17]} cxd4 {[%emt 0:00:09]} 65. Kxd4 {[%emt 0:00:05]} Kc6 {[%emt 0:00:09]} 66. Kc4 {[%emt 0:00:48]} Kd6 {[%emt 0:00:08]} 67. Kd4 {[%emt 0:00:15]} Kc6 {[%emt 0:00:11]} 68. Kc4 {[%emt 0:00:18]} Kd6 {[%emt 0:00:04]} 69. Kd4 Kc6 70. Kc4 Kd6 71. Kd4 Kc6 {[%emt 0:00:01]} 72. Kc4 Kd6 {[%emt 0:00:04]} 1/2-1/2

[Event "GER-ch Youth-U10 2022"]
[Site "Willingen"]
[Date "2022.06.07"]
[Round "5.7"]
[White "Kutz, Paul Matti"]
[Black "Zimmer, Tim"]
[Result "0-1"]
[ECO "C64"]
[WhiteElo "1202"]
[BlackElo "1164"]
[Annotator "NA RC COMBH"]
[PlyCount "64"]
[EventDate "2022.06.05"]
[EventType "swiss"]
[EventRounds "11"]
[EventCountry "GER"]
[SourceTitle "playchess.com"]
[Source "ChessBase"]
[SourceQuality "1"]
[TimeControl "40/4500+30:900+30"]

1. e4 {[%emt 0:00:01]} e5 {[%emt 0:00:06]} 2. Nf3 {[%emt 0:00:04]} Nc6 {[%emt 0:00:04]} 3. Bb5 {[%emt 0:00:06]} Bc5 {[%emt 0:00:52]} 4. c3 {[%emt 0:00:08]} Bb6 {[%emt 0:00:47]} 5. d4 {[%emt 0:00:18]} Nf6 {[%emt 0:00:34]} 6. Bg5 {[%emt 0:00:15]} O-O {[%emt 0:02:27]} 7. dxe5 {[%emt 0:00:40]} Bxf2+ {[%emt 0:00:58]} 8. Kf1 {[%emt 0:01:03]} Nxe5 {[%emt 0:20:06]} 9. Nxe5 {[%emt 0:00:20]} Re8 {[%emt 0:03:15]} 10. Nf3 {[%emt 0:00:26]} c6 {[%emt 0:03:28]} 11. Bd3 {[%emt 0:00:21]} Qb6 {[%emt 0:00:28]} 12. Bxf6 {[%emt 0:01:20]} gxf6 {[%emt 0:01:13]} 13. Qc2 {[%emt 0:03:56]} Bc5 {[%emt 0:04:18]} 14. Na3 {[%emt 0:01:35]} d5 {[%emt 0:01:24]} 15. exd5 {[%emt 0:00:43]} cxd5 {[%emt 0:00:07]} 16. Bxh7+ {[%emt 0:00:15]} Kg7 {[%emt 0:00:01]} 17. h4 {[%emt 0:07:41]} Bg4 {[%emt 0:00:44]} 18. h5 {[%emt 0:04:35]} Re3 {[%emt 0:01:12]} 19. h6+ {[%emt 0:03:15]} Kh8 {[%emt 0:01:02]} 20. Re1 {[%emt 0:01:17]} Rae8 {[%emt 0:01:05]} 21. Rxe3 {[%emt 0:06:08]} Rxe3 {[%emt 0:00:32]} 22. Qa4 {[%emt 0:00:22]} Bxf3 {[%emt 0:01:00]} 23. gxf3 {[%emt 0:01:14]} Qxb2 {[%emt 0:00:57]} 24. Qc2 {[%emt 0:26:43]} Rxf3+ {[%emt 0:02:19]} 25. Ke1 {[%emt 0:00:57]} Qxa3 {[%emt 0:01:38]} 26. Qg2 {[%emt 0:01:55]} Qc1+ {[%emt 0:00:27]} 27. Ke2 {[%emt 0:00:11]} Re3+ {[%emt 0:01:01]} 28. Kf2 {[%emt 0:00:14]} Qd2+ {[%emt 0:00:09]} 29. Kg1 {[%emt 0:00:39]} Re2+ {[%emt 0:00:14]} 30. Kh2 {[%emt 0:00:29]} Rxg2+ {[%emt 0:00:05]} 31. Kh3 {[%emt 0:00:05]} Qf2 {[%emt 0:00:06]} 32. Rg1 {[%emt 0:00:13]} Qg3# {[%emt 0:00:06]} 0-1

[Event "GER-ch Youth-U10 2022"]
[Site "Willingen"]
[Date "2022.06.07"]
[Round "5.8"]
[White "Rau, Eduard"]
[Black "Van 't Hof, Eric"]
[Result "1-0"]
[ECO "C78"]
[WhiteElo "1406"]
[BlackElo "2081"]
[Annotator "TA"]
[PlyCount "77"]
[EventDate "2022.06.05"]
[EventType "swiss"]
[EventRounds "11"]
[EventCountry "GER"]
[SourceTitle "playchess.com"]
[Source "ChessBase"]
[SourceQuality "1"]
[TimeControl "40/4500+30:900+30"]

{[%evp 15,77,10,19,18,8,16,11,0,0,7,14,0,27,0,0,0,8,0,0,-9,0,-27,-37,-42,0,-9,-3,-10,71,-8,265,151,237,237,250,252,288,285,291,291,341,350,354,352,352,354,370,343,375,380,414,406,417,404,466,391,468,483,584,492,610,589,580,551]} 1. e4 {[%emt 0:00:05]} e5 {[%emt 0:00:08]} 2. Nf3 {[%emt 0:00:03]} Nc6 {[%emt 0:00:10]} 3. Bb5 {[%emt 0:00:02][%cal Bf1b5,Bb5a4,Ba4b3][%mdl 32]} a6 {[%emt 0:00:09]} 4. Ba4 {[%emt 0:00:04]} Nf6 {[%emt 0:00:10]} 5. d3 {[%emt 0:00:07]} Bc5 {[%emt 0:00:16]} 6. O-O {[%emt 0:00:34]} b5 {[%emt 0:00:12]} 7. Bb3 {[%emt 0:00:03]} d6 {[%emt 0:00:10]} 8. c3 {[%emt 0:00:05]} h6 {[%emt 0:00:39]} 9. Re1 {[%emt 0:00:57] 9.Nbd2 gains popularity. C78: Ruy Lopez: Archangelsk and Möller Defences.} O-O {[%emt 0:02:21]} 10. Nbd2 {[%emt 0:00:34]} Bb6 {[%emt 0:00:32]} 11. h3 {[%emt 0:00:05] The position is equal.} Ne7 {[%emt 0:00:58][%cal Bc6e7,Be7g6,Bg6f4][%mdl 32]} 12. Nf1 {[%emt 0:00:14]} Ng6 {[%emt 0:00:26] [#]} 13. Ne3 $146 {[%emt 0:00:25]} ({Predecessor:} 13. Ng3 Be6 14. d4 c5 15. Bxe6 fxe6 16. dxe5 Nxe5 17. Nxe5 dxe5 18. c4 Ba5 19. Rf1 Qxd1 20. Rxd1 bxc4 {½-½ (56) McShane,L (2713)-Bologan,V (2695) Germany 2013}) 13... Nf4 {[%emt 0:03:41]} 14. Nf5 {[%emt 0:03:31]} Bxf5 {[%emt 0:01:14]} 15. exf5 {[%emt 0:00:02]} Qd7 {[%emt 0:00:55]} 16. Bxf4 {[%emt 0:00:56]} exf4 {[%emt 0:00:22]} 17. Nh4 {[%emt 0:00:11]} d5 {[%emt 0:09:47]} 18. Qf3 {[%emt 0:03:41]} Qd6 {[%emt 0:00:35]} 19. d4 {[%emt 0:00:09]} c6 {[%emt 0:01:51]} 20. Re5 {[%emt 0:01:10][%cal Be1e5,Be5e6,Be6c6][%mdl 32]} Bc7 {[%emt 0:02:47]} 21. Rae1 {[%emt 0:00:25]} Ne4 {[%emt 0:02:14]} (21... b4 $11) 22. Ng6 {[%emt 0:01:41]} fxg6 $4 {[%emt 0:00:53][%mdl 8192] [#] This costs Black the game.} (22... Ng5 $1 $11 23. Ne7+ {[#]} Qxe7 $1 24. Rxe7 Nxf3+ 25. gxf3 Bd8) 23. Qxe4 {[%emt 0:00:29]} (23. R5xe4 $18 {Black must now prevent Re6.} Rad8 24. Re7) 23... Qf6 {[%emt 0:02:56]} (23... gxf5 $16 {was called for.} 24. Rxf5 Kh8) 24. Re6 $18 {[%emt 0:01:37]} Qxf5 {[%emt 0:08:22]} (24... gxf5 $2 25. Rxf6 fxe4 26. Rxc6 $18) 25. Qxf5 {[%emt 0:00:27]} Rxf5 {[%emt 0:00:42]} 26. Rxc6 {[%emt 0:00:08]} Bd8 {[%emt 0:00:56]} 27. Rd6 {[%emt 0:00:49]} Kh7 {[%emt 0:03:12]} 28. Re8 {[%emt 0:01:44]} ({Less strong is} 28. Rxd5 Rxd5 29. Bxd5 Rb8 $18) ({Don't do} 28. Bxd5 Bc7 29. Rd7 (29. Bxa8 Bxd6 30. Bb7 Rf6 $18) 29... Rd8 $18) 28... Bc7 {[%emt 0:00:28]} 29. Rxa8 {[%emt 0:00:51]} Bxd6 {[%emt 0:00:22]} 30. Rxa6 {[%emt 0:00:09][%mdl 4096] Endgame KRB-KRB} Bc7 {[%emt 0:01:54]} 31. Rc6 {[%emt 0:01:10]} Rf7 {[%emt 0:02:00]} 32. Bxd5 {[%emt 0:02:05]} Re7 {[%emt 0:00:23]} 33. Kf1 {[%emt 0:00:05]} Rd7 {[%emt 0:04:19]} 34. Be4 {[%emt 0:00:26]} Bd6 {[%emt 0:01:30]} 35. f3 {[%emt 0:00:32]} h5 {[%emt 0:01:19]} 36. Bd3 {[%emt 0:00:54] White is clearly winning.} Kh6 {[%emt 0:00:55]} 37. Kf2 {[%emt 0:00:23]} g5 {[%emt 0:01:31]} 38. Bxb5 {[%emt 0:00:37]} g6 {[%emt 0:02:02]} 39. a4 {[%emt 0:00:56] Weighted Error Value: White=0.19 (very precise) /Black=0.42} 1-0

[Event "GER-ch Youth-U10 2022"]
[Site "Willingen"]
[Date "2022.06.07"]
[Round "5.9"]
[White "Belin, Anton"]
[Black "Lanert, Theodor"]
[Result "1-0"]
[ECO "A45"]
[WhiteElo "1213"]
[BlackElo "1306"]
[Annotator "NA RC COMBH"]
[PlyCount "71"]
[EventDate "2022.06.05"]
[EventType "swiss"]
[EventRounds "11"]
[EventCountry "GER"]
[SourceTitle "playchess.com"]
[Source "ChessBase"]
[SourceQuality "1"]
[TimeControl "40/4500+30:900+30"]

1. d4 {[%emt 0:00:02]} Nf6 {[%emt 0:00:06]} 2. Bg5 {[%emt 0:00:03]} e6 {[%emt 0:00:20]} 3. e4 {[%emt 0:00:13]} Be7 {[%emt 0:00:15]} 4. Nc3 {[%emt 0:00:45]} Nxe4 {[%emt 0:01:36]} 5. Nxe4 {[%emt 0:04:28]} Bxg5 {[%emt 0:00:43]} 6. f4 {[%emt 0:01:00]} Bh4+ {[%emt 0:01:27]} 7. g3 {[%emt 0:00:15]} d5 {[%emt 0:00:37]} 8. Nd2 {[%emt 0:01:29]} Bf6 {[%emt 0:00:32]} 9. Ngf3 {[%emt 0:00:41]} c5 {[%emt 0:00:52]} 10. c3 {[%emt 0:00:20]} cxd4 {[%emt 0:01:16]} 11. cxd4 {[%emt 0:00:03]} Nc6 {[%emt 0:00:15]} 12. Bb5 {[%emt 0:00:08]} Bd7 {[%emt 0:00:08]} 13. Bxc6 {[%emt 0:00:04]} Bxc6 {[%emt 0:00:09]} 14. O-O {[%emt 0:00:09]} Qb6 {[%emt 0:00:10]} 15. Nb3 {[%emt 0:00:11]} O-O {[%emt 0:00:08]} 16. Ne5 {[%emt 0:00:05]} Rac8 {[%emt 0:01:02]} 17. a4 {[%emt 0:00:36]} Rfd8 {[%emt 0:01:08]} 18. Qd3 {[%emt 0:02:16]} Qb4 {[%emt 0:00:35]} 19. Nc5 {[%emt 0:03:30]} b6 {[%emt 0:01:26]} 20. Na6 {[%emt 0:00:09]} Qd6 {[%emt 0:01:05]} 21. a5 {[%emt 0:05:15]} Be8 {[%emt 0:02:00]} 22. b4 {[%emt 0:01:51]} g6 {[%emt 0:02:02]} 23. Rae1 {[%emt 0:00:34]} Bg7 {[%emt 0:00:43]} 24. Rf2 {[%emt 0:03:38]} Bf8 {[%emt 0:01:28]} 25. g4 {[%emt 0:01:15]} bxa5 {[%emt 0:00:39]} 26. Nc5 {[%emt 0:02:22]} Qc7 {[%emt 0:00:46]} 27. f5 {[%emt 0:00:11]} exf5 {[%emt 0:01:28]} 28. gxf5 {[%emt 0:00:04]} axb4 {[%emt 0:01:09]} 29. fxg6 {[%emt 0:00:16]} fxg6 {[%emt 0:01:04]} 30. Ne6 {[%emt 0:00:26]} Qe7 {[%emt 0:00:42]} 31. Rxf8+ {[%emt 0:00:15]} Qxf8 {[%emt 0:00:06]} 32. Nxf8 {[%emt 0:00:06]} Kxf8 {[%emt 0:00:07]} 33. Qf3+ {[%emt 0:00:38]} Kg7 {[%emt 0:00:06]} 34. Rf1 {[%emt 0:00:06]} Bb5 {[%emt 0:00:20]} 35. Qf6+ {[%emt 0:00:33]} Kh6 {[%emt 0:00:06]} 36. Qh4+ {[%emt 0:00:07]} 1-0

[Event "GER-ch Youth-U10 2022"]
[Site "Willingen"]
[Date "2022.06.07"]
[Round "5.10"]
[White "Bundan, Edward"]
[Black "Shen, Tingrui"]
[Result "1/2-1/2"]
[ECO "B35"]
[WhiteElo "1240"]
[BlackElo "1621"]
[Annotator "NA RC COMBH"]
[PlyCount "56"]
[EventDate "2022.06.05"]
[EventType "swiss"]
[EventRounds "11"]
[EventCountry "GER"]
[SourceTitle "playchess.com"]
[Source "ChessBase"]
[SourceQuality "1"]
[TimeControl "40/4500+30:900+30"]

1. e4 {[%emt 0:00:03]} c5 {[%emt 0:00:47]} 2. Nf3 {[%emt 0:00:13]} Nc6 {[%emt 0:00:46]} 3. d4 {[%emt 0:00:29]} cxd4 {[%emt 0:01:41]} 4. Nxd4 {[%emt 0:00:15]} g6 {[%emt 0:01:36]} 5. Nc3 {[%emt 0:00:14]} Bg7 {[%emt 0:03:02]} 6. Be3 {[%emt 0:00:21]} Nf6 {[%emt 0:01:16]} 7. Bc4 {[%emt 0:01:15]} Qa5 {[%emt 0:03:11]} 8. O-O {[%emt 0:01:00]} O-O {[%emt 0:01:39]} 9. Bb3 {[%emt 0:00:59]} d6 {[%emt 0:01:12]} 10. f3 {[%emt 0:00:29]} Bd7 {[%emt 0:02:24]} 11. Qd2 {[%emt 0:01:05]} Rfe8 {[%emt 0:02:15]} 12. Rad1 {[%emt 0:01:00]} Rac8 {[%emt 0:05:14]} 13. Kh1 {[%emt 0:02:36]} Ne5 {[%emt 0:06:19]} 14. Qe2 {[%emt 0:07:17]} a6 {[%emt 0:08:33]} 15. a4 {[%emt 0:02:54]} Qc7 {[%emt 0:05:56]} 16. Rd2 {[%emt 0:13:22]} Nc4 {[%emt 0:05:15]} 17. Bxc4 {[%emt 0:02:40]} Qxc4 {[%emt 0:01:10]} 18. Qxc4 {[%emt 0:01:55]} Rxc4 {[%emt 0:00:26]} 19. Ra1 {[%emt 0:00:51]} Rec8 {[%emt 0:03:02]} 20. g4 {[%emt 0:06:21]} Kf8 {[%emt 0:06:06]} 21. h4 {[%emt 0:01:13]} Rb4 {[%emt 0:05:46]} 22. Nb3 {[%emt 0:04:36]} Be6 {[%emt 0:04:36]} 23. Rd4 {[%emt 0:02:04]} a5 {[%emt 0:02:11]} 24. Na2 {[%emt 0:05:48]} Rbc4 {[%emt 0:03:53]} 25. Nc3 {[%emt 0:03:33]} Rb4 {[%emt 0:01:59]} 26. Na2 {[%emt 0:01:30]} Rbc4 {[%emt 0:03:26]} 27. Nc3 {[%emt 0:06:33]} Rb4 {[%emt 0:00:34]} 28. Na2 {[%emt 0:05:45]} Rbc4 {[%emt 0:01:28]} 1/2-1/2

[Event "GER-ch Youth-U10 2022"]
[Site "Willingen"]
[Date "2022.06.07"]
[Round "5.11"]
[White "Peglau, Paul David"]
[Black "Rudolph, Simon"]
[Result "1-0"]
[ECO "A36"]
[WhiteElo "1623"]
[BlackElo "1361"]
[Annotator "NA RC COMBH"]
[PlyCount "103"]
[EventDate "2022.06.05"]
[EventType "swiss"]
[EventRounds "11"]
[EventCountry "GER"]
[SourceTitle "playchess.com"]
[Source "ChessBase"]
[SourceQuality "1"]
[TimeControl "40/4500+30:900+30"]

1. c4 {[%emt 0:00:05]} c5 {[%emt 0:00:12]} 2. Nc3 {[%emt 0:00:13]} e6 {[%emt 0:00:13]} 3. e4 {[%emt 0:00:56]} Nc6 {[%emt 0:00:23]} 4. g3 {[%emt 0:01:23]} Nf6 {[%emt 0:00:19]} 5. Bg2 {[%emt 0:00:49]} d6 {[%emt 0:02:26]} 6. Nge2 {[%emt 0:00:42]} Be7 {[%emt 0:01:01]} 7. O-O {[%emt 0:01:14]} O-O {[%emt 0:00:19]} 8. d3 {[%emt 0:07:46]} b6 {[%emt 0:01:04]} 9. e5 {[%emt 0:01:59]} dxe5 {[%emt 0:01:30]} 10. Bxc6 {[%emt 0:00:21]} Rb8 {[%emt 0:00:23]} 11. Be3 {[%emt 0:01:39]} Qc7 {[%emt 0:02:52]} 12. Bg2 {[%emt 0:00:41]} h5 {[%emt 0:01:38]} 13. f4 {[%emt 0:02:18]} h4 {[%emt 0:00:37]} 14. fxe5 {[%emt 0:00:52]} Ng4 {[%emt 0:00:34]} 15. Qd2 {[%emt 0:05:22]} hxg3 {[%emt 0:00:44]} 16. Nxg3 {[%emt 0:02:18]} Kh7 {[%emt 0:05:44]} 17. Qe2 {[%emt 0:05:59]} Nxe5 {[%emt 0:04:56]} 18. Bf4 {[%emt 0:02:59]} Bd6 {[%emt 0:00:35]} 19. Bxe5 {[%emt 0:01:10]} Bxe5 {[%emt 0:00:11]} 20. Qh5+ {[%emt 0:01:08]} Kg8 {[%emt 0:00:19]} 21. Nge4 {[%emt 0:03:20]} g6 {[%emt 0:02:07]} 22. Qh6 {[%emt 0:02:15]} Bg7 {[%emt 0:00:31]} 23. Qh4 {[%emt 0:00:52]} Bd4+ {[%emt 0:01:34]} 24. Kh1 {[%emt 0:01:14]} Kg7 {[%emt 0:00:58]} 25. Ng5 {[%emt 0:04:48]} Rh8 {[%emt 0:01:23]} 26. Rxf7+ {[%emt 0:00:58]} Qxf7 {[%emt 0:01:21]} 27. Qxh8+ {[%emt 0:00:31]} Kxh8 {[%emt 0:00:00]} 28. Nxf7+ {[%emt 0:00:02]} Kg7 {[%emt 0:00:02]} 29. Nd6 {[%emt 0:00:12]} Bd7 {[%emt 0:00:29]} 30. Rf1 {[%emt 0:00:28]} Rf8 {[%emt 0:01:16]} 31. Rxf8 {[%emt 0:00:35]} Kxf8 {[%emt 0:00:12]} 32. Be4 {[%emt 0:00:16]} Ke7 {[%emt 0:00:49]} 33. Ndb5 {[%emt 0:00:50]} a6 {[%emt 0:00:38]} 34. Nxd4 {[%emt 0:00:22]} cxd4 {[%emt 0:00:13]} 35. Ne2 {[%emt 0:00:01]} e5 {[%emt 0:01:11]} 36. Bxg6 {[%emt 0:00:31]} Kf6 {[%emt 0:00:22]} 37. Be4 {[%emt 0:00:16]} a5 {[%emt 0:01:29]} 38. Kg2 {[%emt 0:00:13]} Kg5 {[%emt 0:00:48]} 39. Kg3 {[%emt 0:00:18]} Kh5 {[%emt 0:01:29]} 40. Ng1 {[%emt 0:00:31]} a4 {[%emt 0:00:39]} 41. Nf3 {[%emt 0:15:16]} Kh6 {[%emt 0:15:57]} 42. Nxe5 {[%emt 0:00:12]} a3 {[%emt 0:00:39]} 43. b4 {[%emt 0:00:51]} Ba4 {[%emt 0:00:53]} 44. c5 {[%emt 0:00:30]} Bb3 {[%emt 0:00:25]} 45. Nc4 {[%emt 0:00:56]} bxc5 {[%emt 0:00:46]} 46. bxc5 {[%emt 0:03:04]} Bxa2 {[%emt 0:00:30]} 47. Nxa3 {[%emt 0:00:12]} Bb3 {[%emt 0:00:32]} 48. c6 {[%emt 0:00:04]} Be6 {[%emt 0:00:13]} 49. c7 {[%emt 0:00:06]} Bc8 {[%emt 0:00:10]} 50. Nc4 {[%emt 0:00:09]} Kg7 {[%emt 0:00:33]} 51. Nd6 {[%emt 0:00:13]} Ba6 {[%emt 0:01:23]} 52. Bb7 {[%emt 0:00:16]} 1-0

[Event "GER-ch Youth-U10 2022"]
[Site "Willingen"]
[Date "2022.06.07"]
[Round "5.12"]
[White "Li, Yunqi"]
[Black "Svanidze, Alexander"]
[Result "1-0"]
[ECO "D40"]
[WhiteElo "1312"]
[BlackElo "1348"]
[Annotator "NA RC COMBH"]
[PlyCount "73"]
[EventDate "2022.06.05"]
[EventType "swiss"]
[EventRounds "11"]
[EventCountry "GER"]
[SourceTitle "playchess.com"]
[Source "ChessBase"]
[SourceQuality "1"]
[TimeControl "40/4500+30:900+30"]

1. e4 {[%emt 0:00:03]} c6 {[%emt 0:00:05]} 2. d4 {[%emt 0:00:05]} d5 {[%emt 0:00:03]} 3. exd5 {[%emt 0:00:06]} cxd5 {[%emt 0:00:05]} 4. c4 {[%emt 0:00:06]} Nf6 {[%emt 0:00:04]} 5. Nf3 {[%emt 0:00:12]} e6 {[%emt 0:00:20]} 6. Bg5 {[%emt 0:00:15]} Be7 {[%emt 0:00:07]} 7. Nc3 {[%emt 0:00:07]} Nc6 {[%emt 0:00:29]} 8. a3 {[%emt 0:00:40]} a5 {[%emt 0:00:09]} 9. Qd2 {[%emt 0:02:04]} O-O {[%emt 0:00:30]} 10. Be2 {[%emt 0:00:11]} dxc4 {[%emt 0:00:17]} 11. Bxc4 {[%emt 0:00:12]} h6 {[%emt 0:00:33]} 12. Be3 {[%emt 0:00:54]} b6 {[%emt 0:02:09]} 13. O-O {[%emt 0:03:13]} Bb7 {[%emt 0:00:25]} 14. Rad1 {[%emt 0:03:50]} Nd5 {[%emt 0:00:59]} 15. Nxd5 {[%emt 0:01:35]} exd5 {[%emt 0:00:06]} 16. Ba2 {[%emt 0:00:15]} b5 {[%emt 0:01:22]} 17. Bb1 {[%emt 0:03:05]} b4 {[%emt 0:00:56]} 18. Bxh6 {[%emt 0:06:40]} Bf6 {[%emt 0:03:43]} 19. Qc2 {[%emt 0:02:07]} g6 {[%emt 0:00:59]} 20. Bxf8 {[%emt 0:01:13]} Kxf8 {[%emt 0:00:18]} 21. Ba2 {[%emt 0:02:27]} Be7 {[%emt 0:01:10]} 22. a4 {[%emt 0:00:40]} Rc8 {[%emt 0:00:55]} 23. Qd2 {[%emt 0:02:30]} Ba6 {[%emt 0:00:44]} 24. Qh6+ {[%emt 0:01:21]} Kg8 {[%emt 0:00:05]} 25. Rfe1 {[%emt 0:00:49]} Bf6 {[%emt 0:02:33]} 26. Ne5 {[%emt 0:04:21]} Nxe5 {[%emt 0:04:46]} 27. dxe5 {[%emt 0:00:18]} Bg5 {[%emt 0:00:12]} 28. Qh3 {[%emt 0:00:57]} Bc4 {[%emt 0:02:07]} 29. Bxc4 {[%emt 0:01:01]} Rxc4 {[%emt 0:00:07]} 30. e6 {[%emt 0:03:36]} Rc7 {[%emt 0:01:19]} 31. Qd3 {[%emt 0:02:59]} Qf6 {[%emt 0:01:38]} 32. Qxd5 {[%emt 0:05:11]} Rc2 {[%emt 0:01:38]} 33. exf7+ {[%emt 0:08:14]} Kg7 {[%emt 0:01:14]} 34. f8=Q+ {[%emt 0:05:29]} Qxf8 {[%emt 0:00:15]} 35. Qxg5 {[%emt 0:00:52]} Qxf2+ {[%emt 0:00:14]} 36. Kh1 {[%emt 0:00:55]} Rc5 {[%emt 0:00:15]} 37. Re7+ {[%emt 0:00:47]} 1-0